fUST/lending_fUST_20250529
["ID","MTS","AMOUNT","RATE_DAILY","PERIOD"]
[362944941,1748530232524,-207.443021,0.000189,2]
[362944943,1748530232533,-207.443021,0.000199,2]
[362944945,1748530232543,-211.504758,0.00020187,2]
[362944947,1748530232552,-207.443021,0.000209,4]
[362944949,1748530232562,-207.443021,0.000219,6]
[362944951,1748530232572,-1617.79,0.00022,7]
[362944953,1748530232581,-458.11680588,0.00022104,2]
[362944955,1748530232591,-200.0,0.00022191,2]
[362944957,1748530232601,-200.0,0.00022191,2]
[362944959,1748530232617,-200.0,0.00022191,2]
[362944961,1748530232627,-200.0,0.00022191,2]
[362944963,1748530232636,-200.0,0.00022191,2]
[362944965,1748530232645,-200.0,0.00022191,2]
[362944967,1748530232655,-256.34727452,0.00022191,2]
[362944969,1748530232665,-1016.57,0.00022191,2]
[362944971,1748530232674,-6004.65970173,0.00022253,2]
[362945160,1748530238540,-430.0,0.00019178,2]
[362945162,1748530238550,-837.17,0.00019178,2]
[362945164,1748530238562,-430.0,0.00019452,2]
[362945166,1748530238571,-837.17,0.00019452,2]
[362945168,1748530238581,-430.0,0.00019726,2]
[362945170,1748530238590,-645.6990064,0.00019874,2]
[362945172,1748530238600,-430.0,0.0002,2]
[362945174,1748530238609,-372.3675366,0.00020273,2]
[362945176,1748530238618,-9025.86788115,0.00022253,2]
[362945178,1748530238630,-3967.61687273,0.00022253,2]
[362945181,1748530238645,-837.17,0.00019726,2]
[362945183,1748530238655,-5901.85554439,0.00022253,2]
[362945185,1748530238665,-498.42497833,0.00022564,2]
[362945187,1748530238674,-207.443021,0.000229,8]
[362945189,1748530238683,-1617.79,0.000231,7]
[362945191,1748530238693,-207.4,0.00023307,2]
[362945193,1748530238702,-498.42497833,0.00023309,2]
[362945195,1748530238712,-458.11680588,0.00023502,2]
[362945197,1748530238721,-1600.0,0.00023586,3]
[362945198,1748530238730,-8585.9,0.000236,2]
[362945200,1748530238739,-521.75,0.000236,7]
[362945202,1748530238748,-2000.0,0.00023886,3]
[362945204,1748530238758,-993.54832723,0.000239,2]
[362945206,1748530238768,-207.443021,0.000239,10]
[362945210,1748530238787,-571.30801433,0.00023956,2]
[362945212,1748530238798,-498.42497833,0.00024055,2]
[362945214,1748530238808,-1000.0,0.00024086,3]
[362945216,1748530238817,-212.70147903,0.000241,3]
[362945218,1748530238829,-842.5625,0.000241,3]
[362945220,1748530238841,-186.265,0.00024109,2]
[362945222,1748530238851,-571.30801433,0.00024297,2]
[362945224,1748530238860,-1617.79,0.000243,7]
[362945226,1748530238870,-415.494705,0.000245,3]
[362945228,1748530238880,-766.8216,0.00024613,15]
[362945230,1748530238890,-571.30801433,0.00024614,2]
[362945232,1748530238900,-500.0,0.00024656,2]
[362945234,1748530238909,-984.97604924,0.00024656,2]
[362945236,1748530238919,-500.0,0.00024656,2]
[362945238,1748530238929,-984.97604924,0.00024656,2]
[362945240,1748530238938,-984.97604924,0.00024656,2]
[362945242,1748530238947,-500.0,0.00024656,2]
[362945244,1748530238957,-984.97604924,0.00024656,2]
[362945247,1748530238967,-984.97604924,0.00024656,2]
[362945249,1748530238976,-263.16102326,0.00024656,2]
[362945251,1748530238986,-500.0,0.00024656,2]
[362945253,1748530238995,-500.0,0.00024656,2]
[362945254,1748530239005,-984.97604924,0.00024656,2]
[362945276,1748530239016,-984.97604924,0.00024656,2]
[362945278,1748530239210,-500.0,0.00024656,2]
[362945280,1748530239219,-415.32647737,0.00024656,2]
[362945282,1748530239228,-984.97604924,0.00024656,2]
[362945284,1748530239239,-984.97604924,0.00024656,2]
[362945286,1748530239248,-500.0,0.00024656,2]
[362945288,1748530239258,-500.0,0.00024656,2]
[362945290,1748530239269,-984.97604924,0.00024656,2]
[362945292,1748530239278,-984.97604924,0.00024656,2]
[362945294,1748530239287,-984.97604924,0.00024656,2]
[362945296,1748530239297,-372.53,0.00024657,3]
[362945298,1748530239307,-168638.87861,0.00024657,2]
[362945300,1748530239317,-200.0,0.00024658,15]
[362945302,1748530239326,-206.84255254,0.00024658,2]
[362945304,1748530239335,-215.0738,0.00024676,2]
[362945307,1748530239349,-528.06,0.000248,2]
[362945309,1748530239359,-1078.85410523,0.000248,3]
[362945311,1748530239368,-498.42497833,0.000248,2]
[362945313,1748530239377,-167.40859968,0.0002481,2]
[362945315,1748530239387,-785.52,0.00024813,7]
[362945317,1748530239397,-571.30801436,0.00024841,2]
[362945319,1748530239407,-411.542,0.00024883,2]
[362945321,1748530239416,-2228.0,0.00024883,2]
[362945323,1748530239426,-708.0,0.00024883,2]
[362945325,1748530239438,-405.0,0.00024883,2]
[362945327,1748530239447,-150.528,0.00024883,2]
[362945329,1748530239458,-240.156,0.00024883,2]
[362945331,1748530239467,-195.973,0.00024883,2]
[362945333,1748530239477,-200.0,0.000249,7]
[362945335,1748530239487,-8585.9,0.000249,2]
[362945337,1748530239496,-199.36839248,0.000249,2]
[362945339,1748530239506,-458.11680588,0.000249,2]
[362945341,1748530239515,-52076.22,0.000249,2]
[362945343,1748530239524,-152.49,0.000249,31]
[362945345,1748530239534,-152.49,0.000249,31]
[362945347,1748530239544,-152.49,0.000249,31]
[362945349,1748530239554,-152.49,0.000249,31]
[362945351,1748530239565,-152.49,0.000249,31]
[362945353,1748530239575,-152.49,0.000249,31]
[362945355,1748530239584,-152.49,0.000249,31]
[362945357,1748530239594,-152.49,0.000249,31]
[362945359,1748530239603,-152.49,0.000249,31]
[362945361,1748530239612,-152.49,0.000249,31]
[362945365,1748530239622,-152.49,0.000249,31]
[362945367,1748530239631,-152.49,0.000249,31]
[362945369,1748530239641,-152.49,0.000249,31]
[362945371,1748530239650,-152.49,0.000249,31]
[362945373,1748530239660,-604756.677487,0.000249,2]
[362945375,1748530239669,-203.07711574,0.000249,2]
[362945377,1748530239678,-207.443021,0.000249,12]
[362945379,1748530239687,-60360.68,0.000249,7]
[362945381,1748530239696,-203.07711571,0.0002491,2]
[362945383,1748530239706,-203.07711571,0.0002492,2]
[362945385,1748530239715,-203.07711571,0.00024929,2]
[362945387,1748530239724,-203.07711571,0.00024939,2]
[362945389,1748530239734,-203.07711571,0.00024949,2]
[362945391,1748530239743,-203.07711571,0.00024959,2]
[362945393,1748530239752,-203.07711571,0.00024968,2]
[362945395,1748530239761,-203.07711571,0.00024978,2]
[362945397,1748530239770,-203.07711571,0.00024988,2]
[362945399,1748530239779,-160.0,0.00024999,2]
[362945401,1748530239788,-600.0,0.00024999,30]
[362945403,1748530239797,-600.0,0.00024999,30]
[362945405,1748530239806,-600.0,0.00024999,30]
[362945407,1748530239817,-600.0,0.00024999,120]
[362945409,1748530239826,-162441.17074365,0.00025,2]
[362945411,1748530239836,-10126.45598906,0.00025,3]
[362945413,1748530239846,-418922.31572557,0.00025,30]
[362945416,1748530239859,-1614947.5114687,0.00025,30]
[362945418,1748530239868,-385052.4885313,0.00025,30]
[362945420,1748530239880,-1824.17892368,0.00025,30]
[362945422,1748530239891,-837.26323793,0.00025,30]
[362945425,1748530239902,-813.06142564,0.00025,30]
[362945427,1748530239913,-522.71292882,0.00025,30]
[362945429,1748530239924,-1899.42327224,0.00025,30]
[362945431,1748530239936,-41305.61526141,0.00025,30]
[362945433,1748530239946,-1012.92,0.00025,30]
[362945435,1748530239956,-20458.62039333,0.00025,30]
[362945437,1748530239966,-510.0,0.00025,120]
[362945440,1748530239975,-430.3,0.00025,3]
[362945441,1748530239985,-500.0,0.00025,3]
[362945443,1748530239995,-15856.14461669,0.00025,2]
[362945445,1748530240005,-100000.0,0.00025,10]
[362945448,1748530240016,-100000.0,0.00025,20]
[362945449,1748530240026,-101666.58913898,0.00025,30]
[362945451,1748530240035,-30000.0,0.00025,120]
[362945453,1748530240045,-57915.36719071,0.00025,30]
[362945455,1748530240055,-64344.44339883,0.00025,2]
[362945458,1748530240069,-23613.61824057,0.00025,2]
[362945460,1748530240080,-7551.9383606,0.00025,2]
[362945462,1748530240092,-184.90216722,0.00025,120]
[362945464,1748530240102,-2000.0,0.00025,2]
[362945466,1748530240111,-2512.593231,0.00025,31]
[362945468,1748530240121,-150.0,0.00025,3]
[362945470,1748530240130,-1151.91529712,0.00025,2]
[362945472,1748530240139,-374301.73737866,0.00025,30]
[362945786,1748530243205,-156.49,0.00015177,2]
[362945788,1748530243216,-312.98,0.000159,2]
[362945790,1748530243226,-469.47,0.00016622,2]
[362945792,1748530243236,-5000.0,0.00018986,2]
[362945794,1748530243246,-837.17,0.0002,2]
[362945796,1748530243255,-837.17,0.00020273,2]
[362945798,1748530243265,-837.17,0.00020547,2]
[362945800,1748530243275,-837.17,0.00020821,2]
[362945802,1748530243285,-837.17,0.00021095,2]
[362945804,1748530243295,-837.17,0.00021369,2]
[362945806,1748530243305,-837.17,0.00021643,2]
[362945808,1748530243315,-837.17,0.00021917,2]
[362945810,1748530243324,-837.17,0.00022191,2]
[362945812,1748530243334,-837.17,0.00022465,2]
[362945813,1748530243343,-837.17,0.00022739,2]
[362945816,1748530243353,-837.17,0.00023013,2]
[362945818,1748530243364,-837.17,0.00023287,2]
[362945821,1748530243374,-837.17,0.00023561,2]
[362945822,1748530243384,-837.17,0.00023835,2]
[362945824,1748530243393,-837.17,0.00024109,2]
[362945826,1748530243403,-837.17,0.00024383,2]
[362945829,1748530243413,-737.752,0.00024613,15]
[362945831,1748530243422,-14286.86471685,0.00025,30]
[362945833,1748530243435,-55050.00000002,0.00025,30]
[362946239,1748530247462,-625.96,0.00017345,2]
[362946241,1748530247472,-782.46,0.00018068,2]
[362946243,1748530247481,-273.6800002,0.0001879,2]
[362946245,1748530247520,-665.2699998,0.0001879,2]
[362946246,1748530247529,-1095.44,0.00019513,2]
[362946247,1748530247539,-1251.93,0.00020236,2]
[362946248,1748530247547,-1408.42,0.00020959,2]
[362946249,1748530247556,-500.0,0.00021164,2]
[362946250,1748530247565,-1564.90968397,0.00021681,2]
[362946251,1748530247577,-500.0,0.00022252,2]
[362946252,1748530247586,-500.0,0.00022252,2]
[362946253,1748530247595,-500.0,0.00022252,2]
[362946254,1748530247603,-195.89031964,0.00022252,2]
[362946255,1748530247612,-400.63932496,0.00022252,2]
[362946256,1748530247622,-500.0,0.00023356,2]
[362946257,1748530247631,-706.5997,0.00024613,15]
[362946258,1748530247640,-600.0,0.00024656,2]
[362946259,1748530247649,-280.90097163,0.00024656,2]
[362947654,1748530622874,7076.06090263,0.00022,30]
[362947655,1748531122502,237034.32943145,0.00021917,60]
[362947660,1748531148239,-177.3227355,0.00014268,2]
[362947661,1748531151086,-628.13717149,0.00014268,2]
[362947662,1748531228126,-731.44551328,0.00014412,2]
[362947663,1748531241089,-4268.55448672,0.00014412,2]
[362947664,1748531241112,-150.0,0.00014558,2]
[362947665,1748531241136,-150.0,0.00015252,2]
[362947666,1748531241157,-248.5990288,0.00015769,2]
[362947667,1748531241182,-150.0,0.00015945,2]
[362947668,1748531241204,-160.0,0.00016233,2]
[362947669,1748531241226,-171.72,0.00016572,2]
[362947670,1748531241247,-214.64,0.00017263,2]
[362947671,1748531241267,-152.70560196,0.00017503,2]
[362947672,1748531241290,-300.0,0.00017567,2]
[362947673,1748531241313,-300.0,0.00017567,2]
[362947674,1748531241334,-46847.4326726,0.00017567,2]
[362947675,1748531241355,-300.0,0.00017568,2]
[362947676,1748531241377,-300.0,0.00017568,2]
[362947677,1748531241399,-1200.0,0.00017568,2]
[362947678,1748531241424,-300.0,0.00017568,2]
[362947679,1748531241602,-152.70630655,0.00017569,2]
[362947680,1748531241625,-500.0,0.00017569,2]
[362947681,1748531241649,-500.0,0.00017569,2]
[362947682,1748531241674,-487.11950652,0.00017569,2]
[362947683,1748531241698,-500.0,0.00017569,2]
[362947684,1748531241721,-500.0,0.00017569,2]
[362947685,1748531241745,-500.0,0.00017569,2]
[362947686,1748531241768,-500.0,0.00017569,2]
[362947687,1748531241792,-500.0,0.00017569,2]
[362947688,1748531241815,-500.0,0.00017569,2]
[362947689,1748531241838,-500.0,0.00017569,2]
[362947690,1748531241860,-180.20426867,0.00017569,2]
[362947691,1748531245084,-319.79573133,0.00017569,2]
[362947692,1748531245108,-500.0,0.00017569,2]
[362947693,1748531245133,-56.24285493,0.00017569,2]
[362947696,1748531305405,150.0,0.00013787,2]
[362947697,1748531351108,-150.0,0.00014443,2]
[362947698,1748531351130,-150.0,0.000151,2]
[362947699,1748531351151,-150.0,0.00015756,2]
[362947700,1748531351172,-150.0,0.00016413,2]
[362947701,1748531351192,-166.33,0.00017069,2]
[362947702,1748531351213,-5000.0,0.00017393,2]
[362947703,1748531351235,-300.0,0.00017568,2]
[362947704,1748531351256,-443.75714507,0.00017569,2]
[362947705,1748531351278,-500.0,0.00017569,2]
[362947706,1748531351299,-500.0,0.00017569,2]
[362947707,1748531351320,-500.0,0.00017569,2]
[362947708,1748531351341,-500.0,0.00017569,2]
[362947709,1748531351361,-500.0,0.00017569,2]
[362947710,1748531351382,-500.0,0.00017569,2]
[362947711,1748531351403,-500.0,0.00017569,2]
[362947712,1748531351424,-500.0,0.00017569,2]
[362947713,1748531351445,-500.0,0.00017569,2]
[362947714,1748531351468,-500.0,0.00017569,2]
[362947715,1748531351488,-500.0,0.00017569,2]
[362947716,1748531351512,-345.17853215,0.00017569,2]
[362947717,1748531351533,-34297.2410085,0.0001757,2]
[362947718,1748531351555,-160.0,0.00017603,2]
[362947719,1748531351576,-194.06,0.00017726,2]
[362947720,1748531351602,-175.6054286,0.00017734,2]
[362947721,1748531351647,-291.779388,0.00017771,2]
[362947722,1748531351692,-221.78,0.00018382,2]
[362947723,1748531351738,-784.67630602,0.00018756,2]
[362947724,1748531351784,-24900.0,0.00018881,2]
[362947725,1748531351837,-219.44353918,0.000189,2]
[362947726,1748531351882,-192.56,0.00019039,2]
[362947727,1748531351903,-637.07,0.00019167,3]
[362947728,1748531351925,-424.68,0.00019168,3]
[362947729,1748531351946,-212.34,0.00019168,3]
[362947730,1748531351966,-500.0,0.00019177,2]
[362947731,1748531351988,-500.0,0.00019177,2]
[362947732,1748531352016,-1425.36810985,0.00019177,2]
[362947733,1748531352037,-316.50540029,0.00019177,2]
[362947734,1748531352060,-1425.36810985,0.00019177,2]
[362947735,1748531352084,-1425.36810985,0.00019177,2]
[362947736,1748531352105,-500.0,0.00019177,2]
[362947737,1748531352127,-1425.36810985,0.00019177,2]
[362947738,1748531352149,-1425.36810985,0.00019177,2]
[362947739,1748531352172,-1425.36810985,0.00019177,2]
[362947740,1748531352193,-500.0,0.00019177,2]
[362947741,1748531352214,-500.0,0.00019177,2]
[362947742,1748531352235,-384.21271628,0.00019177,2]
[362947743,1748531352262,-1425.36810985,0.00019177,2]
[362947744,1748531352284,-1425.36810985,0.00019177,2]
[362947745,1748531352308,-1425.36810985,0.00019177,2]
[362947746,1748531352330,-1425.36810985,0.00019177,2]
[362947747,1748531352352,-1425.36810985,0.00019177,2]
[362947748,1748531352374,-1425.36810985,0.00019177,2]
[362947749,1748531352396,-1425.36810985,0.00019177,2]
[362947750,1748531352418,-1425.36810985,0.00019177,2]
[362947751,1748531352440,-1433.75262814,0.00019177,2]
[362947752,1748531352462,-1433.75262814,0.00019177,2]
[362947753,1748531352490,-1433.75262814,0.00019177,2]
[362947754,1748531352517,-1433.75262814,0.00019177,2]
[362947755,1748531352540,-1433.75262814,0.00019177,2]
[362947756,1748531352565,-1433.75262814,0.00019177,2]
[362947757,1748531352588,-1433.75262814,0.00019177,2]
[362947758,1748531352610,-1433.75262814,0.00019177,2]
[362947759,1748531352778,-1640.45196536,0.00019177,2]
[362947760,1748531352802,-1640.45196536,0.00019177,2]
[362947761,1748531352824,-1640.45196536,0.00019177,2]
[362947762,1748531352846,-1640.45196536,0.00019177,2]
[362947763,1748531352868,-2200.13557707,0.00019177,2]
[362947764,1748531352888,-528.94830698,0.00019177,2]
[362947765,1748531352908,-510.0,0.00019178,2]
[362947766,1748531352928,-433.41417867,0.00019178,2]
[362947767,1748531352949,-430.0,0.00019178,2]
[362947768,1748531352970,-430.0,0.00019178,2]
[362947769,1748531352992,-500.0,0.00019178,2]
[362947770,1748531353015,-500.0,0.00019178,2]
[362947771,1748531353037,-640.72853416,0.00019178,2]
[362947772,1748531353056,-560.90892923,0.00019178,2]
[362947773,1748531353076,-430.0,0.00019178,2]
[362947774,1748531353097,-430.0,0.00019178,2]
[362947775,1748531353116,-430.0,0.00019178,2]
[362947776,1748531353136,-430.0,0.00019178,2]
[362947777,1748531353156,-430.0,0.00019178,2]
[362947778,1748531353177,-430.0,0.00019178,2]
[362947779,1748531353197,-430.0,0.00019178,2]
[362947780,1748531353216,-430.0,0.00019178,2]
[362947781,1748531353236,-430.0,0.00019178,2]
[362947782,1748531353258,-430.0,0.00019178,2]
[362947783,1748531353278,-430.0,0.00019178,2]
[362947784,1748531353298,-430.0,0.00019178,2]
[362947785,1748531353318,-412.81341696,0.00019178,2]
[362947786,1748531353340,-175.61851743,0.00019178,2]
[362947787,1748531353363,-430.0,0.00019178,2]
[362947788,1748531353384,-430.0,0.00019178,2]
[362947789,1748531353406,-430.0,0.00019178,2]
[362947790,1748531353431,-430.0,0.00019178,2]
[362947791,1748531353452,-430.0,0.00019178,2]
[362947792,1748531353482,-430.0,0.00019178,2]
[362947793,1748531353504,-430.0,0.00019178,2]
[362947794,1748531353526,-187.62330161,0.00019178,2]
[362947795,1748531353548,-300.0,0.00019178,2]
[362947796,1748531353569,-430.0,0.00019178,2]
[362947797,1748531353589,-404.81318171,0.00019178,2]
[362947798,1748531353610,-344.56810667,0.00019178,2]
[362947799,1748531353633,-430.0,0.00019178,2]
[362947800,1748531353654,-430.0,0.00019178,2]
[362947801,1748531353674,-430.0,0.00019178,2]
[362947802,1748531353695,-430.0,0.00019178,2]
[362947803,1748531353717,-430.0,0.00019178,2]
[362947804,1748531353738,-430.0,0.00019178,2]
[362947805,1748531353759,-430.0,0.00019178,2]
[362947806,1748531353779,-430.0,0.00019178,2]
[362947807,1748531353801,-430.0,0.00019178,2]
[362947808,1748531353822,-430.0,0.00019178,2]
[362947809,1748531353843,-430.0,0.00019178,2]
[362947810,1748531353865,-436.36370377,0.00019178,2]
[362947811,1748531353885,-1000.0,0.00019178,2]
[362947812,1748531353906,-430.0,0.00019178,2]
[362947813,1748531353926,-430.0,0.00019178,2]
[362947814,1748531353946,-353.7244745,0.00019178,2]
[362947815,1748531353968,-430.0,0.00019178,2]
[362947816,1748531353989,-430.0,0.00019178,2]
[362947817,1748531354013,-430.0,0.00019178,2]
[362947818,1748531354034,-430.0,0.00019178,2]
[362947819,1748531354055,-430.0,0.00019178,2]
[362947820,1748531354076,-430.0,0.00019178,2]
[362947821,1748531354098,-430.0,0.00019178,2]
[362947822,1748531354118,-430.0,0.00019178,2]
[362947823,1748531354139,-430.0,0.00019178,2]
[362947824,1748531354160,-430.0,0.00019178,2]
[362947825,1748531354182,-430.0,0.00019178,2]
[362947826,1748531354203,-430.0,0.00019178,2]
[362947827,1748531354223,-430.0,0.00019178,2]
[362947828,1748531354247,-430.0,0.00019178,2]
[362947829,1748531354269,-370.0,0.00019178,2]
[362947830,1748531354289,-430.0,0.00019178,2]
[362947831,1748531354311,-430.0,0.00019178,2]
[362947832,1748531354332,-370.60584873,0.00019178,2]
[362947833,1748531354354,-430.0,0.00019178,2]
[362947834,1748531354378,-430.0,0.00019178,2]
[362947835,1748531354399,-430.0,0.00019178,2]
[362947836,1748531354420,-430.0,0.00019178,2]
[362947837,1748531354440,-430.0,0.00019178,2]
[362947838,1748531354461,-430.0,0.00019178,2]
[362947839,1748531354483,-420.86701249,0.00019178,2]
[362947840,1748531354504,-430.0,0.00019178,2]
[362947841,1748531354527,-430.0,0.00019178,2]
[362947842,1748531354550,-430.0,0.00019178,2]
[362947843,1748531354572,-430.0,0.00019178,2]
[362947844,1748531354592,-430.0,0.00019178,2]
[362947845,1748531354612,-430.0,0.00019178,2]
[362947846,1748531354633,-430.0,0.00019178,2]
[362947847,1748531354654,-430.0,0.00019178,2]
[362947848,1748531354675,-430.0,0.00019178,2]
[362947849,1748531354697,-430.0,0.00019178,2]
[362947850,1748531354718,-430.0,0.00019178,2]
[362947851,1748531354738,-236.55599469,0.00019178,2]
[362947852,1748531354761,-430.0,0.00019178,2]
[362947853,1748531354782,-430.0,0.00019178,2]
[362947854,1748531354804,-394.59980571,0.00019178,2]
[362947855,1748531354827,-430.0,0.00019178,2]
[362947856,1748531354847,-430.0,0.00019178,2]
[362947857,1748531354870,-430.0,0.00019178,2]
[362947858,1748531354891,-430.0,0.00019178,2]
[362947859,1748531354912,-430.0,0.00019178,2]
[362947860,1748531354933,-430.0,0.00019178,2]
[362947861,1748531354952,-430.0,0.00019178,2]
[362947862,1748531354975,-430.0,0.00019178,2]
[362947863,1748531354995,-430.0,0.00019178,2]
[362947864,1748531355017,-430.0,0.00019178,2]
[362947865,1748531355038,-430.0,0.00019178,2]
[362947866,1748531355059,-430.0,0.00019178,2]
[362947867,1748531355079,-430.0,0.00019178,2]
[362947868,1748531355099,-430.0,0.00019178,2]
[362947869,1748531355120,-541.63,0.00019178,2]
[362947870,1748531355142,-541.63,0.00019178,2]
[362947871,1748531355163,-541.63,0.00019178,2]
[362947872,1748531355183,-541.63,0.00019178,2]
[362947873,1748531355204,-541.63,0.00019178,2]
[362947874,1748531355225,-541.63,0.00019178,2]
[362947875,1748531355247,-430.0,0.00019178,2]
[362947876,1748531355270,-430.0,0.00019178,2]
[362947877,1748531355292,-430.0,0.00019178,2]
[362947878,1748531355313,-218.32384428,0.00019178,2]
[362947879,1748531355335,-430.0,0.00019178,2]
[362947880,1748531355355,-430.0,0.00019178,2]
[362947881,1748531355373,-430.0,0.00019178,2]
[362947882,1748531355391,-430.0,0.00019178,2]
[362947883,1748531355415,-430.0,0.00019178,2]
[362947884,1748531355437,-430.0,0.00019178,2]
[362947885,1748531355458,-430.0,0.00019178,2]
[362947886,1748531355483,-430.0,0.00019178,2]
[362947887,1748531355505,-430.0,0.00019178,2]
[362947888,1748531355527,-430.0,0.00019178,2]
[362947889,1748531355550,-430.0,0.00019178,2]
[362947890,1748531355571,-537.15493703,0.00019178,2]
[362947891,1748531355592,-430.0,0.00019178,2]
[362947892,1748531355613,-435.35705539,0.00019178,2]
[362947893,1748531355639,-430.0,0.00019178,2]
[362947894,1748531355660,-430.0,0.00019178,2]
[362947895,1748531355679,-430.0,0.00019178,2]
[362947896,1748531355698,-502.0361393,0.00019178,2]
[362947897,1748531355719,-430.0,0.00019178,2]
[362947898,1748531355740,-430.0,0.00019178,2]
[362947899,1748531355761,-430.0,0.00019178,2]
[362947900,1748531355781,-490.0,0.00019178,2]
[362947901,1748531355802,-430.0,0.00019178,2]
[362947902,1748531355823,-430.0,0.00019178,2]
[362947903,1748531355844,-430.0,0.00019178,2]
[362947904,1748531355865,-430.0,0.00019178,2]
[362947905,1748531355884,-430.0,0.00019178,2]
[362947906,1748531355905,-430.0,0.00019178,2]
[362947907,1748531355925,-500.0,0.00019178,2]
[362947908,1748531355948,-430.0,0.00019178,2]
[362947909,1748531355970,-430.0,0.00019178,2]
[362947910,1748531355990,-430.0,0.00019178,2]
[362947911,1748531356012,-430.0,0.00019178,2]
[362947912,1748531356034,-430.0,0.00019178,2]
[362947913,1748531356055,-430.0,0.00019178,2]
[362947914,1748531356193,-430.0,0.00019178,2]
[362947915,1748531356217,-430.0,0.00019178,2]
[362947916,1748531356238,-430.0,0.00019178,2]
[362947917,1748531356262,-430.0,0.00019178,2]
[362947918,1748531356283,-430.0,0.00019178,2]
[362947919,1748531356303,-430.0,0.00019178,2]
[362947920,1748531356324,-430.0,0.00019178,2]
[362947921,1748531356345,-430.0,0.00019178,2]
[362947922,1748531356365,-430.0,0.00019178,2]
[362947923,1748531356386,-430.0,0.00019178,2]
[362947924,1748531356406,-430.0,0.00019178,2]
[362947925,1748531356426,-430.0,0.00019178,2]
[362947926,1748531356447,-430.0,0.00019178,2]
[362947927,1748531356467,-430.0,0.00019178,2]
[362947928,1748531356491,-430.0,0.00019178,2]
[362947929,1748531356516,-430.0,0.00019178,2]
[362947930,1748531356537,-430.0,0.00019178,2]
[362947931,1748531356558,-430.0,0.00019178,2]
[362947932,1748531356578,-430.0,0.00019178,2]
[362947933,1748531356600,-430.0,0.00019178,2]
[362947934,1748531356623,-430.0,0.00019178,2]
[362947935,1748531356644,-430.0,0.00019178,2]
[362947936,1748531356665,-430.0,0.00019178,2]
[362947937,1748531356686,-430.0,0.00019178,2]
[362947938,1748531356706,-430.0,0.00019178,2]
[362947939,1748531356728,-430.0,0.00019178,2]
[362947940,1748531356749,-430.0,0.00019178,2]
[362947941,1748531356771,-430.0,0.00019178,2]
[362947942,1748531356795,-329.36363868,0.00019178,2]
[362947943,1748531356815,-430.0,0.00019178,2]
[362947944,1748531356836,-430.0,0.00019178,2]
[362947945,1748531356857,-432.80904633,0.00019178,2]
[362947946,1748531356877,-430.0,0.00019178,2]
[362947947,1748531356897,-430.0,0.00019178,2]
[362947948,1748531356916,-503.95174106,0.00019178,2]
[362947949,1748531356938,-430.0,0.00019178,2]
[362947950,1748531356958,-430.0,0.00019178,2]
[362947951,1748531356979,-430.0,0.00019178,2]
[362947952,1748531356999,-430.0,0.00019178,2]
[362947953,1748531357020,-430.0,0.00019178,2]
[362947954,1748531357040,-430.0,0.00019178,2]
[362947955,1748531357061,-430.0,0.00019178,2]
[362947956,1748531357082,-430.0,0.00019178,2]
[362947957,1748531357101,-430.0,0.00019178,2]
[362947958,1748531357120,-430.0,0.00019178,2]